{"text_format":"3","workbook":"xlsx","n_sheets":5,"sheets":["Instructions_TODO","General questions","2 Mandatory Requirements","Technical schedules A&B","Risk and support"],"not_rendered":{"defined_names":2},"read":"whole","date_system":"1900"}

{"sheet":"Instructions_TODO","index":0,"n_rows":60,"n_cols":2,"rows_kept":60,"merged":[[14,0,15,0],[17,0,18,0],[20,0,21,0],[59,0,59,1]]}
["Instructions for completing this workbook"]
[]
["1) The cells where information is required to be entered is unprotected in this workbook."]
["2) Complete all Light Green shaded areas with the relevant requested information. Where the colour shading is not shown, complete the accessible cells."]
["3) All information shall be submitted in electronic format and this workbook complete in MS Excel format as requested."]
["4) Any other format for the submission of the requested electronic information will NOT be evaluated."]
["5) Reference files shall be posted under the relevant folder names indicated below for the different sections of this workbook."]
["6) Filenames shall be descriptive to indicate what information it contains."]
["7) This excel document must be provided in duplicate with the name of the duplicate being “Metering panels and modules Schedules - Copy”.  "]
["8) The reference columns in all sheets are to be completed . Suppliers are required to reference supporting documentation to justify stated compliance."]
["9) Risk and Support Questionnaires must be completed for each group of items, where multiple offers are submitted for a single item, on separate sheets."]
[]
["Completing the Worksheets"]
["Sheet Description","Sheet Instructions"]
["General Questionnaire","1) Complete all questions in the space provided."]
[null,"2) Post all relevant electronic copies of documents under a folder named the same as the sheet"]
[]
["Mandatory requirements","1) Complete this worksheet with all relevant deviations."]
[null,"2) Post all relevant electronic copies of documents under a folder named the same as the sheet"]
[]
[" A&B Schedules","1) Complete these worksheets with all relevant deviations."]
[null,"2) Post all relevant electronic copies of documents under a folder named the same as the sheet"]
[]
["Risk & Support Questionnaires","1) Complete the worksheet as required."]
[null,"2) Give justification and references to support the answers provided"]
[null,"3) Post all relevant electronic copies of documents under a folder named the same as the sheet"]
{"$rows_empty":33}
["Substation Metering Panels and Modules 2025"]

{"sheet":"General questions","index":1,"n_rows":9,"n_cols":4,"rows_kept":9,"merged":[[0,0,0,3]]}
["General Questionnaire"]
[null,"Question","Response","Proof to be submitted"]
["A","Tenderer"]
[1,"Company name"]
[2,"Address of Head Quarters"]
[3,"Contact details"]
[4,"Website adress"]
[5,"State Name  of Metering panels and modules manufacturer (if not in-house)"]
[6,"State Name  of Metering panels and modules assembly and wiring manufacturer (if not in-house)"]

{"sheet":"2 Mandatory Requirements","index":2,"n_rows":9,"n_cols":5,"rows_kept":9,"merged":[[0,0,0,4],[3,0,6,0]]}
["Technical Mandatory Requirements\nSubstation Metering panels and modules"]
[null,"Technical Mandatory Requirements","Response","Deviation proposal","Deviation reference"]
[]
[1,"Submissions are complete and should contain at least the following:"]
[null,"a.     Mandatory schedule completed"]
[null,"b.     Technical schedules completed"]
[null,"c.     Risk and Support questionnaire completed"]
[2,"Manufacturer must be an original equipment manufacturer and not a distributor. "]
[3,"The manufacturer must be able to supply all of the panels and metering modules as listed in the technical requirements."]

{"sheet":"Technical schedules A&B","index":3,"n_rows":135,"n_cols":22,"rows_kept":135,"merged":[[0,0,0,4],[13,0,25,0],[26,0,37,0],[38,0,52,0],[53,0,65,0],[66,0,80,0],[82,0,89,0],[90,0,95,0],[96,0,102,0],[103,0,110,0],[112,0,117,0],[118,0,123,0],[124,0,129,0],[130,0,132,0]]}
["Substation metering panels and modules\nThe technical requirements for these items are based on the requirements as stipulated in 240-65292589\n"]
["Clause","DESCRIPTION","\nSCHEDULE A","SCHEDULE B\nYes (or Y), Partial (or P), No (or N)","Response","Evaluator score","Weight\nHeigh = 10, \nMedium = 5, \nLow = 1","Score\nYes = 3, \nPartially = 1, \nNo = 0","Total"]
[1,"Cabinets"]
[1.1,"Swing frame cabinet 2400(H) x 800(W) x 600(D)"]
["1.1.1","Manufactured to the requirements of 240-60725641: Specification for standard (19 inch) equipment cabinets ","State compliance",null,"Describe deviation",null,1,{"$f":"IF(OR(D5=\"Yes\",D5=\"Y\",D5=\"YES\",D5=\"y\"),3,IF(OR(D5=\"Partial\",D5=\"P\",D5=\"PARTIAL\",D5=\"p\"),1,0))","v":0},{"$f":"H5*G5","v":0},{"$nulls":12},"Yes"]
["1.1.2","Cabinets shall be sourced from Eskom accepted / contracted suppliers","State type and manufacturer",null,"State type and manufacturer",null,1,{"$f":"IF(OR(D6=\"Yes\",D6=\"Y\",D6=\"YES\",D6=\"y\"),3,IF(OR(D6=\"Partial\",D6=\"P\",D6=\"PARTIAL\",D6=\"p\"),1,0))","v":0},0,{"$nulls":12},"Partial"]
[1.2,"Back entry cabinet 2400(H) x 600(W) x 600(D)",{"$nulls":19},"No"]
["1.2.1","Manufactured to the requirements of 240-60725641: Specification for standard (19 inch) equipment cabinets ","State compliance",null,"Describe deviation",null,1,{"$f":"IF(OR(D8=\"Yes\",D8=\"Y\",D8=\"YES\",D8=\"y\"),3,IF(OR(D8=\"Partial\",D8=\"P\",D8=\"PARTIAL\",D8=\"p\"),1,0))","v":0},{"$f":"H8*G8","v":0}]
["1.2.2","Cabinets shall be sourced from Eskom accepted / contracted suppliers","State type and manufacturer",null,"State type and manufacturer",null,1,0,0]
[1.3,"Slimline cabinet 1400(H) x 700(W) x 350(D)"]
["1.3.1","Manufactured to the requirements of 240-76628295 and D-DT-5801: Distribution specification for a slimline panel (19 inch rack) and blanking plates","State compliance",null,"Describe deviation",null,1,0,{"$f":"H11*G11","v":0}]
["1.3.2","Cabinets shall be sourced from Eskom accepted / contracted suppliers","State type and manufacturer",null,"State type and manufacturer",null,1,0,0]
[2,"Metering modules - manufactured according to 240-65292589 and D-DT-5084"]
[2.1,"Meter module – OLD surface mount 4-way complete with:"]
[null,"Front plate including -"]
[null,"·         PK2 - 4 way test blocks","State type and manufacturer",null,"State type and manufacturer",null,5,0,0]
[null,"·         Terminals","State type and manufacturer",null,"State type and manufacturer",null,5,0,{"$f":"H17*G17","v":0}]
[null,"·        Communication 4-way patch box","State type and manufacturer",null,"State type and manufacturer",null,1,{"$f":"IF(OR(D18=\"Yes\",D18=\"Y\",D18=\"YES\",D18=\"y\"),3,IF(OR(D18=\"Partial\",D18=\"P\",D18=\"PARTIAL\",D18=\"p\"),1,0))","v":0},{"$f":"H18*G18","v":0}]
[null,"·         Trunking","State compliance",null,"Describe deviation",null,1,0,{"$f":"H19*G19","v":0}]
[null,"·         Wiring","State compliance",null,"Describe deviation",null,10,0,0]
[null,"Horizontal Back plate including -"]
[null,"·         MCBs 5 or 6A, 5 kA AC",{"$f":"E22","v":"State type, manufacturer and ratings"},null,"State type, manufacturer and ratings",null,5,{"$f":"IF(OR(D22=\"Yes\",D22=\"Y\",D22=\"YES\",D22=\"y\"),3,IF(OR(D22=\"Partial\",D22=\"P\",D22=\"PARTIAL\",D22=\"p\"),1,0))","v":0},{"$f":"H22*G22","v":0}]
[null,"·         MCBs 5 or 6A, 5 kA DC","State type, manufacturer and ratings",null,"State type, manufacturer and ratings",null,5,0,0]
[null,"·         Terminals","State type and manufacturer",null,"State type and manufacturer",null,5,0,0]
[null,"·         Trunking","State compliance",null,"Describe deviation",null,1,0,0]
[null,"·         Wiring","State compliance",null,"Describe deviation",null,10,0,0]
[2.2,"Meter module – surface mount 4-way complete with:"]
[null,"Front plate including -"]
[null,"·         PK2 - 4 way test blocks","State type and manufacturer",null,"State type and manufacturer",null,5,0,{"$f":"H29*G29","v":0}]
[null,"·         Terminals","State type and manufacturer",null,"State type and manufacturer",null,5,0,{"$f":"H30*G30","v":0}]
[null,"·        Communication 4-way patch box","State type and manufacturer",null,"State type and manufacturer",null,1,0,{"$f":"H31*G31","v":0}]
[null,"·         Trunking","State compliance",null,"Describe deviation",null,1,0,{"$f":"H32*G32","v":0}]
[null,"·         Wiring","State compliance",null,"Describe deviation",null,10,0,0]
[null,"Horizontal Back plate including -"]
[null,"·         MCBs 5 or 6A, 5 kA AC",{"$f":"E35","v":"State type, manufacturer and ratings"},null,"State type, manufacturer and ratings",null,5,0,0]
[null,"·         MCBs 5 or 6A, 5 kA DC","State type, manufacturer and ratings",null,"State type, manufacturer and ratings",null,5,{"$f":"IF(OR(D36=\"Yes\",D36=\"Y\",D36=\"YES\",D36=\"y\"),3,IF(OR(D36=\"Partial\",D36=\"P\",D36=\"PARTIAL\",D36=\"p\"),1,0))","v":0},0]
[null,"·         Terminals","State type and manufacturer",null,"State type and manufacturer",null,5,0,0]
[null,"·         Trunking","State compliance",null,"Describe deviation",null,1,0,0]
[2.3,"·         Wiring","State compliance",null,"Describe deviation",null,10,0,0]
[null,"Meter module – 19” rack mount 4-way complete with:","Stated for information only"]
[null,"Front plate including -"]
[null,"·         19” rack for the fitment of two meters","State type and manufacturer",null,"State type and manufacturer",null,5,0,{"$f":"H42*G42","v":0}]
[null,"·         Essailec connector blocks","State type and manufacturer",null,"State type and manufacturer",null,5,0,{"$f":"H43*G43","v":0}]
[null,"·         PK2 - 4 way test blocks","State type and manufacturer",null,"State type and manufacturer",null,5,0,{"$f":"H44*G44","v":0}]
[null,"·         Terminals","State type and manufacturer",null,"State type and manufacturer",null,5,0,0]
[null,"·        Communication 4-way patch box","State type and manufacturer",null,"State type and manufacturer",null,1,0,{"$f":"H46*G46","v":0}]
[null,"·         Trunking","State compliance",null,"Describe deviation",null,1,0,0]
[null,"·         Wiring","State compliance",null,"Describe deviation",null,10,0,0]
[null,"Back plate including -"]
[null,"·         MCBs 5 or 6A, 5 kA AC",{"$f":"E50","v":"State type, manufacturer and ratings"},null,"State type, manufacturer and ratings",null,5,0,0]
[null,"·         MCBs 5 or 6A, 5 kA DC","State type, manufacturer and ratings",null,"State type, manufacturer and ratings",null,5,{"$f":"IF(OR(D51=\"Yes\",D51=\"Y\",D51=\"YES\",D51=\"y\"),3,IF(OR(D51=\"Partial\",D51=\"P\",D51=\"PARTIAL\",D51=\"p\"),1,0))","v":0},0]
[null,"·         Terminals","State type and manufacturer",null,"State type and manufacturer",null,5,0,0]
[null,"·         Trunking","State compliance",null,"Describe deviation",null,1,0,0]
[2.4,"·         Wiring","State compliance",null,"Describe deviation",null,10,0,0]
[null,"Meter module – surface mount 6-way complete with:","Stated for information only"]
[null,"Front plate including -"]
[null,"·         PK2 - 4 & 6 way test blocks","State type and manufacturer",null,"State type and manufacturer",null,5,0,{"$f":"H57*G57","v":0}]
[null,"·         Terminals","State type and manufacturer",null,"State type and manufacturer",null,5,0,{"$f":"H58*G58","v":0}]
[null,"·        Communication 4-way patch box","State type and manufacturer",null,"State type and manufacturer",null,1,0,{"$f":"H59*G59","v":0}]
[null,"·         Trunking","State compliance",null,"Describe deviation",null,1,0,{"$f":"H60*G60","v":0}]
[null,"·         Wiring","State compliance",null,"Describe deviation",null,10,0,0]
[null,"Horizontal Back plate including -"]
[null,"·         MCBs 5 or 6A, 5 kA AC",{"$f":"E63","v":"State type, manufacturer and ratings"},null,"State type, manufacturer and ratings",null,5,0,0]
[null,"·         MCBs 5 or 6A, 5 kA DC","State type, manufacturer and ratings",null,"State type, manufacturer and ratings",null,5,{"$f":"IF(OR(D64=\"Yes\",D64=\"Y\",D64=\"YES\",D64=\"y\"),3,IF(OR(D64=\"Partial\",D64=\"P\",D64=\"PARTIAL\",D64=\"p\"),1,0))","v":0},0]
[null,"·         Terminals","State type and manufacturer",null,"State type and manufacturer",null,5,0,0]
[null,"·         Trunking","State compliance",null,"Describe deviation",null,1,0,0]
[2.5,"·         Wiring","State compliance",null,"Describe deviation",null,10,0,0]
[null,"Meter module – 19” rack mount 6-way complete with:","Stated for information only"]
[null,"Front plate including -"]
[null,"·         19” rack for the fitment of two meters","State type and manufacturer",null,"State type and manufacturer",null,5,0,{"$f":"H70*G70","v":0}]
[null,"·         Essailec connector blocks","State type and manufacturer",null,"State type and manufacturer",null,5,0,{"$f":"H71*G71","v":0}]
[null,"·         PK2 - 4 & 6 way test blocks","State type and manufacturer",null,"State type and manufacturer",null,5,0,{"$f":"H72*G72","v":0}]
[null,"·         Terminals","State type and manufacturer",null,"State type and manufacturer",null,5,0,0]
[null,"·        Communication 4-way patch box","State type and manufacturer",null,"State type and manufacturer",null,1,0,{"$f":"H74*G74","v":0}]
[null,"·         Trunking","State compliance",null,"Describe deviation",null,1,0,0]
[null,"·         Wiring","State compliance",null,"Describe deviation",null,10,0,0]
[null,"Back plate including -"]
[null,"·         MCBs 5 or 6A, 5 kA AC",{"$f":"E78","v":"State type, manufacturer and ratings"},null,"State type, manufacturer and ratings",null,5,0,0]
[null,"·         MCBs 5 or 6A, 5 kA DC","State type, manufacturer and ratings",null,"State type, manufacturer and ratings",null,5,{"$f":"IF(OR(D79=\"Yes\",D79=\"Y\",D79=\"YES\",D79=\"y\"),3,IF(OR(D79=\"Partial\",D79=\"P\",D79=\"PARTIAL\",D79=\"p\"),1,0))","v":0},0]
[null,"·         Terminals","State type and manufacturer",null,"State type and manufacturer",null,5,0,0]
[null,"·         Trunking","State compliance",null,"Describe deviation",null,1,{"$f":"IF(OR(D81=\"Yes\",D81=\"Y\",D81=\"YES\",D81=\"y\"),3,IF(OR(D81=\"Partial\",D81=\"P\",D81=\"PARTIAL\",D81=\"p\"),1,0))","v":0},0]
[3,"·         Wiring","State compliance",null,"Describe deviation",null,10,0,0]
[3.1,"Voltage selection modules - manufactured according to 240-65292589 and D-DT-5084","Stated for information only"]
[null,"Voltage selection module A complete with:"]
[null,"·         MCBs 5 or 6A, 5 kA AC",{"$f":"E85","v":"State type, manufacturer and ratings"},null,"State type, manufacturer and ratings",null,5,0,{"$f":"H85*G85","v":0}]
[null,"·         MCBs 5 or 6A, 5 kA DC","State type, manufacturer and ratings",null,"State type, manufacturer and ratings",null,5,0,0]
[null,"·         Phase failure relays","State type and manufacturer",null,"State type and manufacturer",null,5,0,0]
[null,"·         3-way latching relay","State type and manufacturer",null,"State type and manufacturer",null,5,0,{"$f":"H88*G88","v":0}]
[null,"·         Terminals","State type and manufacturer",null,"State type and manufacturer",null,5,0,{"$f":"H89*G89","v":0}]
[null,"·         Trunking","State compliance",null,"Describe deviation",null,1,0,0]
[3.2,"·         Wiring","State compliance",null,"Describe deviation",null,10,0,0]
[null,"Voltage selection module B complete with:"]
[null,"·         MCBs 5 or 6A, 2.5 kA ","State type and manufacturer",null,"State type and manufacturer",null,5,0,0]
[null,"·         Chop-over relays","State type and manufacturer",null,"State type and manufacturer",null,5,0,0]
[null,"·         Terminals","State type and manufacturer",null,"State type and manufacturer",null,5,0,{"$f":"H95*G95","v":0}]
[null,"·         Trunking","State compliance",null,"Describe deviation",null,1,0,{"$f":"H96*G96","v":0}]
[3.3,"·         Wiring","State compliance",null,"Describe deviation",null,10,0,0]
[null,"Voltage selection module C complete with:"]
[null,"·         MCBs 5 or 6A, 5 kA AC",{"$f":"E99","v":"State type, manufacturer and ratings"},null,"State type, manufacturer and ratings",null,5,0,0]
[null,"·         MCBs 5 or 6A, 5 kA DC","State type, manufacturer and ratings",null,"State type, manufacturer and ratings",null,5,0,0]
[null,"·         3-way Latching relay","State type and manufacturer",null,"State type and manufacturer",null,5,0,0]
[null,"·         Terminals","State type and manufacturer",null,"State type and manufacturer",null,5,0,{"$f":"H102*G102","v":0}]
[null,"·         Trunking","State compliance",null,"Describe deviation",null,1,0,{"$f":"H103*G103","v":0}]
[3.4,"·         Wiring","State compliance",null,"Describe deviation",null,10,0,0]
[null,"Voltage selection module D complete with:"]
[null,"·         MCBs 5 or 6A, 5 kA AC",{"$f":"E106","v":"State type, manufacturer and ratings"},null,"State type, manufacturer and ratings",null,5,0,0]
[null,"·         MCBs 5 or 6A, 5 kA DC","State type, manufacturer and ratings",null,"State type, manufacturer and ratings",null,5,0,0]
[null,"·         Voltage failure relays","State type and manufacturer",null,"State type and manufacturer",null,5,0,0]
[null,"·         3-way Latching relay","State type and manufacturer",null,"State type and manufacturer",null,5,0,{"$f":"H109*G109","v":0}]
[null,"·         Terminals","State type and manufacturer",null,"State type and manufacturer",null,5,0,{"$f":"H110*G110","v":0}]
[null,"·         Trunking","State compliance",null,"Describe deviation",null,1,0,0]
[4,"·         Wiring","State compliance",null,"Describe deviation",null,10,0,0]
[4.1,"Interposing modules - manufactured according to 240-65292589 and D-DT-5084","Stated for information only"]
[null,"Interposing module A complete with:"]
[null,"·         MCBs 5 or 6A, 5 kA DC",{"$f":"E115","v":"State type, manufacturer and ratings"},null,"State type, manufacturer and ratings",null,5,0,{"$f":"H115*G115","v":0}]
[null,"·         Repeat relays 110V u.c. / 24V DC: ","State type and manufacturer",null,"State type and manufacturer",null,5,0,0]
[null,"·         Terminals","State type and manufacturer",null,"State type and manufacturer",null,5,0,{"$f":"H117*G117","v":0}]
[null,"·         Trunking","State compliance",null,"Describe deviation",null,1,0,{"$f":"H118*G118","v":0}]
[4.2,"·         Wiring","State compliance",null,"Describe deviation",null,10,0,0]
[null,"Interposing module B complete with:"]
[null,"·         MCBs 5 or 6A, 5 kA DC",{"$f":"E121","v":"State type, manufacturer and ratings"},null,"State type, manufacturer and ratings",null,5,0,0]
[null,"·         Repeat relays 110V u.c. / 24V DC: ","State type and manufacturer",null,"State type and manufacturer",null,5,0,0]
[null,"·         Terminals","State type and manufacturer",null,"State type and manufacturer",null,5,0,{"$f":"H123*G123","v":0}]
[null,"·         Trunking","State compliance",null,"Describe deviation",null,1,0,{"$f":"H124*G124","v":0}]
[5,"·         Wiring","State compliance",null,"Describe deviation",null,10,0,0]
[null,"Quality of supply module - manufactured according to 240-65292589 and D-DT-5084 complete with:"]
[null,"·         MCBs 2A, 5 kA AC",{"$f":"E127","v":"State type, manufacturer and ratings"},null,"State type, manufacturer and ratings",null,5,{"$f":"IF(OR(D127=\"Yes\",D127=\"Y\",D127=\"YES\",D127=\"y\"),3,IF(OR(D127=\"Partial\",D127=\"P\",D127=\"PARTIAL\",D127=\"p\"),1,0))","v":0},0]
[null,"·         MCBs 5 or 6A, 5 kA DC","State type, manufacturer and ratings",null,"State type, manufacturer and ratings",null,5,0,0]
[null,"·         Terminals","State type and manufacturer",null,"State type and manufacturer",null,5,0,0]
[null,"·         Trunking","State compliance",null,"Describe deviation",null,1,0,{"$f":"H130*G130","v":0}]
[6,"·         Wiring","State compliance",null,"Describe deviation",null,10,0,{"$f":"H131*G131","v":0}]
[null,"Modem module - manufactured according to 240-65292589 and D-DT-5084"]
[null,"·         MCBs 5 or 6A, 5 kA DC",{"$f":"E133","v":"State type, manufacturer and ratings"},null,"State type, manufacturer and ratings",null,5,0,0]
[null,"·         Trunking","State compliance",null,"Describe deviation",null,1,0,0]
[{"$nulls":4},"Total",null,{"$f":"SUM(G4:G134)","v":479},null,{"$f":"(SUM(I4:I134)/(G135*3))*100","v":0}]

{"sheet":"Risk and support","index":4,"n_rows":36,"n_cols":6,"rows_kept":36,"merged":[[0,0,0,3],[3,0,6,0],[3,4,6,4],[3,5,6,5],[7,0,8,0],[9,0,15,0],[10,4,15,4],[10,5,15,5],[16,0,20,0],[17,4,20,4],[17,5,20,5],[21,0,24,0],[22,4,24,4],[22,5,24,5],[25,0,30,0],[26,4,30,4],[26,5,30,5],[31,0,33,0],[32,4,33,4],[32,5,33,5]]}
["Risk and Support Questionnaire"]
[null,"Question","Response","Reference/ Justification","Scoring"]
[]
[1,"Installed base/time that the product has been installed",{"$nulls":3},"1. Existing contract with Eskom for this range of panels = 25\n2. Existing contract with Eskom for part of the range or with other municipalities = 20\n3. Existing contract for other panels not part of this range = 15\n4. New entry to market = 15\n5. No previous customers for panels = 5\n6. No references = 5\n7. Some fields left open or no meaningful information provided = -5 for each item\n8. Nothing entered = 0\n"]
[null,"a.     Supplier to state the date of first production of similar substation panel modules / schemes"]
[null,"b.     State the customer and the hardware configurations of comparable substation panel modules / schemes that you have delivered or that are still in progress during the past five (5) years."]
[null,"c.     Provide customers references, quantities and contract values of the above"]
[2,"Deviations from standard"]
[null,"a.     Deviation schedules within the A&B technical schedules for all items being offered to be completed",{"$nulls":3},"1. None = 25\n2. Deviations found 15\n3. Nothing listed = 0\n"]
[3,"Ability to deliver"]
[null,"a.     Briefly describe the nature of your resources in the Republic of South Africa e.g. workshop facilities, test equipment, etc",{"$nulls":3},"1. Adequate facilities = 25\n2. Not adequate = 15\n3. Guaranteed lead times > 10 weeks = - 5\n4. Guaranteed lead times > 20 weeks = -10\n5. Number of panels per month < 10 = -5\n6. Number of panels per month < 5 = -10\n7. Number of panels per month < 2= - 15\n8. Number of panels currently in production = -5 for none\n9. Some fields left open or no meaningful information provided = -5 for each item\n10. Nothing entered = 0\n"]
[null,"b.     Briefly describe the sizes and capacities of your design, production and testing facilities."]
[null,"c.     Guaranteed lead times for the manufacture and delivery of substation panel modules / schemes"]
[null,"d.     The number of substation panel modules / schemes that can be produced per month with the Tenderer’s current capability."]
[null,"e.     The implications of increasing the number of substation panel modules / schemes that can be produced per month."]
[null,"f.     List and describe the number of substation panel modules / schemes projects that are currently in progress and or planned to start through 2021/2022 versus the number of technical staff directly involved with the production of substation panel modules / schemes."]
[4,"Historical performance"]
[null,"a.     Provide the original and actual delivery dates of those substation panel modules / schemes listed in point 1 above.",{"$nulls":3},"1. Previous experience with manufacturing metering panels = 25\n2. No experience = 15\n3. Late deliveries = -5\n4. No references of similar projects = -5\n5. No references from customers = -5\n6. Some fields left open or no meaningful information provided = -5 for each item\n7. Nothing entered = 0\n"]
[null,"b.     Where applicable provide the major reasons for delivery delays for those substation panel modules / schemes that were delivered more than six (6) months behind the original delivery schedule"]
[null,"c.     If not already detailed in your answers to the above questions, state what experience you have had with the different types of substation panel modules / schemes"]
[null,"d.     Details of any similar projects that have been undertaken by the Tenderer and references from relevant customers.  "]
[5,"Local expertise"]
[null,"a.     Have your staff been trained on the items being offered?",{"$nulls":3},"1. Staff trained = 40\n2. Staff cannot perform local R&D = -10\n3. Staff ccannot perform local fault finding and repairs = -20\n4. Some fields left open or no meaningful information provided = -10 for each item\n5. Nothing entered = 0\n"]
[null,"b.     Does your staff have the ability to perform local R&D?"]
[null,"c.     Does your staff have the ability to perform local fault finding and repairs?"]
[6,"Maintenance "]
[null,"a.     Provide details on the companies staff complement dedicated to the following:",{"$nulls":3},"1. Adequate staff = 40\n2. Not adequate staff = 20\n3. Some fields left open or no meaningful information provided = -10 for each item\n4. Nothing entered = 0\n"]
[null,"i. Sales "]
[null,"ii. Technical support "]
[null,"iii. Maintenance "]
[null,"b.     Will the Supplier honour all warranties and guarantees if Eskom personnel perform maintenance functions on substation panel modules / schemes?"]
[7,"Spares holding"]
[null,"a.     Describe the recommended substation panel modules / schemes spares holdings with respect to Eskom’s geographical locations and scheme availability requirements.",{"$nulls":3},"1. Spares holding listed = 20\n2. Limited spares holding = 10\n3. Some fields left open or no meaningful information provided = -10 for each item\n4. Nothing entered = 0\n"]
[null,"b.     Describe your policy on availability of spare parts and expansion parts for a period of ten years subsequent to the expiry of the supply contract."]
[]
[{"$nulls":4},{"$f":"(E4+E9+E11+E18)*0.6+(E23+E27+E33)*0.4","v":0}]